Workbook

Sheet Изделие
B1: Выбор параметров | C1: Примечания | D1: ЦЕНА | E1: =Расёты!E36 -> 16,318.52 ₽
A2: =Расёты!F3 -> Наименование | B2: ЩУ-П НИКОМ | C2: Марка щита
A3: =Расёты!G3 -> Тип клапана | B3: Кр | C3: Кп – с пружинным возвратом; Кр – реверсивный; Кэ – электромагнитный.
A4: =Расёты!H3 -> Входное напряжение | B4: 230 | C4: Не редактируемый параметр.
A5: =Расёты!J3 -> Сепень защиты | B5: IP31 | C5: IP31 – с пружинным возвратом; IP54 – реверсивный; IP65 – электромагнитный.
A6: =Расёты!L3 -> Способ контрля линий | B6: 1 | C6: 1 – косвенный контроль линий управления; 2 – прямой контроль всех линий.
A7: =Расёты!X3 -> Количество пожарных зон (Сигналов "ПОЖАР") | B7: 1 | C7: Указывается значения от 1 до 6 Если пожарных зон > 6 =.> ЭКСКЛЮЗИВ
A8: =CONCATENATE(Расёты!AS2,Расёты!AU2,Расёты!AQ1,Расёты!AS1) -> Количество клапанов 1-ой Пожарной зоны | B8: 3 | C8: Указывается от 1 до 40 | E8: 5
A9: =IF(B7<2,0,CONCATENATE(Расёты!AS2,Расёты!AV2,Расёты!AQ1,Расёты!AS1)) -> 0 | B9: 1 | C9: Указывается от 1 до 40
A10: =IF(B7<3,"0",CONCATENATE(Расёты!AS2,Расёты!AW2,Расёты!AR2,Расёты!AS1)) -> 0 | B10: 1 | C10: Указывается от 1 до 40
A11: =IF(B7<4,"0",CONCATENATE(Расёты!AS2,Расёты!AX2,Расёты!AQ1,Расёты!AS1)) -> 0 | B11: 1 | C11: Указывается от 1 до 40
A12: =IF(B7<5,"0",CONCATENATE(Расёты!AS2,Расёты!AY2,Расёты!AQ1,Расёты!AS1)) -> 0 | B12: 1 | C12: Указывается от 1 до 40
A13: =IF(B7<6,"0",CONCATENATE(Расёты!AS2,Расёты!AZ2,Расёты!AQ1,Расёты!AS1)) -> 0 | B13: 1 | C13: Указывается от 1 до 40
A14: =Расёты!P3 -> Напряжение питания привода | B14: 230 | C14: Не редактируемый параметр. Если привод 24В => добавить 500руб. умноженное на кол-во клапанов
A15: =Расёты!R3 -> Максимальный номинальный ток одного привода | B15: 1 | C15: Если ток привода < 6А - цена не изменится, а в маркировке, в счёте - указать "6А"
A16: =Расёты!T3 -> Тип управляющего сигнала | B16: 24D | C16: 12/24D – управление постоянным напряжением 12/24В; NO – нормально разомкнутый контакт (при ПОЖАРЕ - замыкается); NC – нормально замкнутый контакт (при ПОЖАРЕ - размыкается).
A17: =Расёты!Z3 -> Диспетчеризация | C17: " " – нет диспетчеризации положения; Д – Диспетчеризация положения каждого клапана.
A18: =Расёты!V3 -> Индикация | C18: " " – нет индикации положения; И – индикация положения каждого клапана.
A19: Маркировка: | B19: =Расёты!F20 -> ЩУ-П НИКОМАКр-230-IP31-1[3/230/1-24D]
B20: Описание | C20: =Расёты!I36 -> Щит управления 3-мя клапанами, с косвенным контролем линий управления
C21: =Расёты!I37 -> С реверсивным приводом, 230В, Iном < 1А
C22: =Расёты!I38 -> Корпус: ЩМП1 (395х310х220). Степень защиты оболочки IP31
C23: =Расёты!I39 -> Управляющий сигнал, от внешних устройств, типа: 24D (напряжение 24VDC)
C24: =Расёты!C29 -> Пожарных зон: 1 шт.
C25: =Расёты!I40 -> 
C26: =Расёты!I41 -> 
D27: ЦЕНА | E27: =E1 -> 16,318.52 ₽

Sheet Расёты (hidden)
E1: символ: | G1: А | H1: - | J1: - | L1: - | N1: [ | R1: / | T1: - | V1: =IF(Z20=Z4,"]","") -> ] | Z1: ] | AQ1: -ой | AR1: -ый | AS1: Пожарной зоны
A2: 1 | B2: =F34 -> Корпус ЩМП1 (395х310х220) | C2: 1 | D2: =G34 -> 2056 | P2: / | V2: =IF(Изделие!B18=V5,W2,"") ->  | W2: =IF(Z20=Z5,";","+") -> + | Z2: =IF(Z20=Z5,"+","") ->  | AQ2: -ий | AR2: -ей | AS2: Количество клапанов | AT2: 0 | AU2: 1 | AV2: 2 | AW2: 3 | AX2: 4 | AY2: 5 | AZ2: 6 | BA2: 7 | BB2: 8 | BC2: 9 | BD2: 10 | BE2: 11 | BF2: 12 | BG2: 13 | BH2: 14 | BI2: 15 | BJ2: 16 | BK2: 17 | BL2: 18 | BM2: 19 | BN2: 20 | BO2: 21 | BP2: 22 | BQ2: 23 | BR2: 24 | BS2: 25 | BT2: 26 | BU2: 27 | BV2: 28 | BW2: 29 | BX2: 30 | BY2: 31 | BZ2: 32 | CA2: 33 | CB2: 34 | CC2: 35 | CD2: 36 | CE2: 37 | CF2: 38 | CG2: 39 | CH2: 40 | CI2: 41 | CJ2: 42 | CK2: 43 | CL2: 44 | CM2: 45 | CN2: 46 | CO2: 47 | CP2: 48 | CQ2: 49 | CR2: 50 | CS2: 51 | CT2: 52 | CU2: 53 | CV2: 54 | CW2: 55 | CX2: 56 | CY2: 57 | CZ2: 58 | DA2: 59 | DB2: 60 | DC2: 61 | DD2: 62 | DE2: 63 | DF2: 64 | DG2: 65 | DH2: 66 | DI2: 67 | DJ2: 68 | DK2: 69 | DL2: 70 | DM2: 71 | DN2: 72 | DO2: 73 | DP2: 74 | DQ2: 75 | DR2: 76 | DS2: 77 | DT2: 78 | DU2: 79 | DV2: 80 | DW2: 81 | DX2: 82 | DY2: 83 | DZ2: 84 | EA2: 85 | EB2: 86 | EC2: 87 | ED2: 88 | EE2: 89 | EF2: 90 | EG2: 91 | EH2: 92 | EI2: 93 | EJ2: 94 | EK2: 95 | EL2: 96 | EM2: 97 | EN2: 98 | EO2: 99 | EP2: 100 | EQ2: 101 | ER2: 102 | ES2: 103 | ET2: 104 | EU2: 105 | EV2: 106 | EW2: 107 | EX2: 108 | EY2: 109 | EZ2: 110 | FA2: 111 | FB2: 112 | FC2: 113 | FD2: 114 | FE2: 115 | FF2: 116 | FG2: 117 | FH2: 118 | FI2: 119 | FJ2: 120 | FK2: 121 | FL2: 122 | FM2: 123 | FN2: 124 | FO2: 125 | FP2: 126 | FQ2: 127 | FR2: 128 | FS2: 129 | FT2: 130
A3: 2 | B3: =H34 -> Блок релейный "БР-2-US-IP00" | C3: 2 | D3: =I34 -> 485 | E3: Итоговый подбор параметров | F3: Наименование | G3: Тип клапана | H3: Входное напряжение | J3: Сепень защиты | L3: Способ контрля линий | N3: ряд после таблиц (вторая строка) | P3: Напряжение питания привода | R3: Максимальный номинальный ток одного привода | T3: Тип управляющего сигнала | V3: Индикация | X3: Количество пожарных зон (Сигналов "ПОЖАР") | Z3: Диспетчеризация | AB3: Параметр 11 | AD3: Параметр 12 | AF3: Параметр 13 | AH3: Параметр 14 | AJ3: Параметр 15 | AL3: Параметр 16 | AN3: Параметр 17 | AP3: Параметр 18 | AR3: Параметр 19 | AT3: Параметр 20
A4: 3 | B4: =J34 -> Контактор КМ-103 9А катушка управления 220В AC | C4: 3 | D4: =K34 -> 466.84 | F4: ЩУ-П НИКОМ | G4: Кп | H4: 230 | J4: IP31 | L4: 1 | P4: 230 | R4: 1 | T4: NO | X4: 1 | AB4: вар.11.1 | AD4: вар.12.1 | AF4: вар.13.1 | AH4: вар.14.1 | AJ4: вар.15.1 | AL4: вар.16.1 | AN4: вар.17.1 | AP4: вар.18.1 | AR4: вар.19.1 | AT4: вар.20.1
A5: 4 | B5: =L34 ->  | C5: 4 | D5: =O34 -> 134.94 | G5: Кр | J5: IP54 | L5: 2 | R5: 6 | T5: NC | V5: И | X5: 2 | Z5: Д | AB5: вар.11.2 | AD5: вар.12.2 | AF5: вар.13.2 | AH5: вар.14.2 | AJ5: вар.15.2 | AL5: вар.16.2 | AN5: вар.17.2 | AP5: вар.18.2 | AR5: вар.19.2 | AT5: вар.20.2
A6: 5 | B6: =N34 -> Выключатель автоматический однополюсный 1А С ВА-101 4.5кА (11049DEK) | C6: 5 | D6: =Q34 -> 160.07 | G6: Кэ | J6: IP65 | R6: 10 | T6: 12D | X6: 3 | AB6: вар.11.3 | AD6: вар.12.3 | AF6: вар.13.3 | AH6: вар.14.3 | AJ6: вар.15.3 | AL6: вар.16.3 | AN6: вар.17.3 | AP6: вар.18.3 | AR6: вар.19.3 | AT6: вар.20.3
A7: 6 | B7: =P34 -> Выключатель автоматический однополюсный 1А С ВА-101 4.5кА (11049DEK) | C7: 6 | D7: =S34 -> 224 | N7: =Изделие!B8 -> 3 | P7: =CONCATENATE(P1,P2,Изделие!B14) -> /230 | R7: =CONCATENATE(R1,R2,Изделие!B15) -> /1 | T7: 24D | X7: 4 | AB7: вар.11.4 | AD7: вар.12.4 | AF7: вар.13.4 | AH7: вар.14.4 | AJ7: вар.15.4 | AL7: вар.16.4 | AN7: вар.17.4 | AP7: вар.18.4 | AR7: вар.19.4 | AT7: вар.20.4
A8: 7 | B8: =R34 -> Реле промышленное миниатюрное; монтаж в колодку; Контакты: 4CO (AgNi), напряжение 230В AC, номинальный ток 6А, опции: кнопка тест + мех.индикатор. R4N-2014-23-5230-WT | C8: 7 | D8: =S34 -> 224 | N8: =IF(X20<2,0,Изделие!B9) -> 0 | O8: =CONCATENATE(L1,N8,P8,R8) -> -0 | P8: =IF(N8=0,"",P7) ->  | Q8: =IF(N8=0,"",O8) ->  | R8: =IF(N8=0,"",R7) ->  | X8: 5 | AB8: вар.11.5 | AD8: вар.12.5 | AF8: вар.13.5 | AH8: вар.14.5 | AJ8: вар.15.5 | AL8: вар.16.5 | AN8: вар.17.5 | AP8: вар.18.5 | AR8: вар.19.5 | AT8: вар.20.5
A9: 8 | B9: =T34 -> Колодка с винтовыми зажимами (75*27*61мм) для реле серии R4N, T-R4; цвет серый. GZM4-gray | C9: 8 | D9: =U34 -> 159 | N9: =IF(X20<3,0,Изделие!B10) -> 0 | O9: =CONCATENATE(L1,N9,P9,R9) -> -0 | P9: =IF(N9=0,"",P7) ->  | Q9: =IF(N9=0,"",O9) ->  | R9: =IF(N9=0,"",R7) ->  | X9: 6 | AB9: вар.11.6 | AD9: вар.12.6 | AF9: вар.13.6 | AH9: вар.14.6 | AJ9: вар.15.6 | AL9: вар.16.6 | AN9: вар.17.6 | AP9: вар.18.6 | AR9: вар.19.6 | AT9: вар.20.6
A10: 9 | B10: =V34 -> Фиксатор металлический для реле R2N, R3N, R4N для колодок GZM2, GZT2, GZM3, GZT3, GZM4, GZT4, GZMB4, GZ4, GZP4. G4 1052 | C10: 9 | D10: =W34 -> 11 | N10: =IF(X20<4,0,Изделие!B11) -> 0 | O10: =CONCATENATE(L1,N10,P10,R10) -> -0 | P10: =IF(N10=0,"",P7) ->  | Q10: =IF(N10=0,"",O10) ->  | R10: =IF(N10=0,"",R7) ->  | AB10: вар.11.7 | AD10: вар.12.7 | AF10: вар.13.7 | AH10: вар.14.7 | AJ10: вар.15.7 | AL10: вар.16.7 | AN10: вар.17.7 | AP10: вар.18.7 | AR10: вар.19.7 | AT10: вар.20.7
A11: 10 | B11: =X34 -> Реле миниатюрное электромеханическое низкопрофильное, Контакты: 2CO (AgNi), напряжение 230В AC, номинальный ток 8А, прозрачный корпус, IP40, RTII. RM84-2012-25-5230-RUS | C11: 10 | D11: =Y34 -> 170 | N11: =IF(X20<5,0,Изделие!B12) -> 0 | O11: =CONCATENATE(L1,N11,P11,R11) -> -0 | P11: =IF(N11=0,"",P7) ->  | Q11: =IF(N11=0,"",O11) ->  | R11: =IF(N11=0,"",R7) ->  | X11: =IF(X20=1,"",X20) ->  | AB11: вар.11.8 | AD11: вар.12.8 | AF11: вар.13.8 | AH11: вар.14.8 | AJ11: вар.15.8 | AL11: вар.16.8 | AN11: вар.17.8 | AP11: вар.18.8 | AR11: вар.19.8 | AT11: вар.20.8
A12: 11 | B12: =Z34 -> Колодка с винтовыми зажимами для реле серии RM84, RM85,RM87L/P; цвет серый ( в комплекте шильдик маркировочный GZT80-0035). GZM80-gray | C12: 11 | D12: =AA34 -> 113 | N12: =IF(X20<6,0,Изделие!B13) -> 0 | O12: =CONCATENATE(L1,N12,P12,R12) -> -0 | P12: =IF(N12=0,"",P7) ->  | Q12: =IF(N12=0,"",O12) ->  | R12: =IF(N12=0,"",R7) ->  | AB12: вар.11.9 | AD12: вар.12.9 | AF12: вар.13.9 | AH12: вар.14.9 | AJ12: вар.15.9 | AL12: вар.16.9 | AN12: вар.17.9 | AP12: вар.18.9 | AR12: вар.19.9 | AT12: вар.20.9
A13: 12 | B13: =AB34 -> Фиксатор металлический для реле RM84, RM85, RM87, для колодок GZT80, GZM80, GZF80, GZT92, GZM92. GZM80-0041 | C13: 12 | D13: =AC34 -> 11 | X13: =X20*2-2 -> 0 | AB13: вар.11.10 | AD13: вар.12.10 | AF13: вар.13.10 | AH13: вар.14.10 | AJ13: вар.15.10 | AL13: вар.16.10 | AN13: вар.17.10 | AP13: вар.18.10 | AR13: вар.19.10 | AT13: вар.20.10
A14: 13 | B14: =AD34 -> 304130, Клеммник на DIN-рейку 4мм.кв. (серый); AVK4 (упак 100 шт) | C14: 13 | D14: =AE34 -> 31.54975 | X14: =X20 -> 1 | AB14: вар.11.11 | AD14: вар.12.11 | AF14: вар.13.11 | AH14: вар.14.11 | AJ14: вар.15.11 | AL14: вар.16.11 | AN14: вар.17.11 | AP14: вар.18.11 | AR14: вар.19.11 | AT14: вар.20.11
A15: 14 | B15: =AF34 -> 304131, Клеммник на DIN-рейку 4мм.кв. (синий); AVK4 (упак 100 шт) | C15: 14 | D15: =AG34 -> 31.54975 | X15: =X20-1 -> 0 | AB15: вар.11.12 | AD15: вар.12.12 | AF15: вар.13.12 | AH15: вар.14.12 | AJ15: вар.15.12 | AL15: вар.16.12 | AN15: вар.17.12 | AP15: вар.18.12 | AR15: вар.19.12 | AT15: вар.20.12
A16: 15 | B16: =AH34 -> 334120, Клеммник на DIN-рейку 4 мм.кв., (земля); AVK2,5/4T (упак 50 шт) | C16: 15 | D16: =AI34 -> 111.6376 | X16: =300*(X20-1) -> 0 | AB16: вар.11.13 | AD16: вар.12.13 | AF16: вар.13.13 | AH16: вар.14.13 | AJ16: вар.15.13 | AL16: вар.16.13 | AN16: вар.17.13 | AP16: вар.18.13 | AR16: вар.19.13 | AT16: вар.20.13
A17: 16 | B17: =AJ34 -> 304120, Клеммник на DIN-рейку 2,5мм.кв. (серый); AVK2,5 (упак 100 шт) | C17: 16 | D17: =AK34 -> 27.9094 | AB17: вар.11.14 | AD17: вар.12.14 | AF17: вар.13.14 | AH17: вар.14.14 | AJ17: вар.15.14 | AL17: вар.16.14 | AN17: вар.17.14 | AP17: вар.18.14 | AR17: вар.19.14 | AT17: вар.20.14
A18: 17 | B18: =AL34 -> 304121, Клеммник на DIN-рейку 2,5мм.кв. (синий); AVK2,5 (упак 100 шт) | C18: 17 | D18: =AM34 -> 27.9094 | AB18: вар.11.15 | AD18: вар.12.15 | AF18: вар.13.15 | AH18: вар.14.15 | AJ18: вар.15.15 | AL18: вар.16.15 | AN18: вар.17.15 | AP18: вар.18.15 | AR18: вар.19.15 | AT18: вар.20.15
A19: 18 | B19: =AN34 -> 304121, Клеммник на DIN-рейку 2,5мм.кв. (синий); AVK2,5 (упак 100 шт) | C19: 18 | D19: =AO34 -> 27.9094 | E19: итог: | F19: =CONCATENATE(F1,F2,Изделие!B2) -> ЩУ-П НИКОМ | G19: =CONCATENATE(G1,G2,Изделие!B3) -> АКр | H19: =CONCATENATE(H1,H2,Изделие!B4) -> -230 | J19: =CONCATENATE(J1,J2,Изделие!B5) -> -IP31 | L19: =CONCATENATE(L1,L2,Изделие!B6) -> -1 | N19: =CONCATENATE(N1,N2,N7) -> [3 | R19: =Изделие!B15 -> 1 | T19: =CONCATENATE(T1,T2,X19,Изделие!B16) -> -24D | V19: =CONCATENATE(V1,V2,Изделие!B18) -> ] | X19: =CONCATENATE(X1,X2,X11) ->  | Z19: =IF(Z20=Z5,_xlfn.CONCAT(Z1,Z2,Z20),"") ->  | AB19: =CONCATENATE(AB1,AB2,Изделие!#REF!) ->  | AD19: =_xlfn.CONCAT(AD1,AD2,Изделие!#REF!) ->  | AF19: =_xlfn.CONCAT(AF1,AF2,Изделие!#REF!) ->  | AH19: =_xlfn.CONCAT(AH1,AH2,Изделие!#REF!) ->  | AJ19: =_xlfn.CONCAT(AJ1,AJ2,Изделие!B25) ->  | AL19: =_xlfn.CONCAT(AL1,AL2,Изделие!B26) ->  | AN19: =_xlfn.CONCAT(AN1,AN2,Изделие!B27) ->  | AP19: =_xlfn.CONCAT(AP1,AP2,Изделие!B28) ->  | AR19: =_xlfn.CONCAT(AR1,AR2,Изделие!B29) ->  | AT19: =_xlfn.CONCAT(AT1,AT2,Изделие!B30) -> 
A20: 19 | B20: =AP34 -> 304120, Клеммник на DIN-рейку 2,5мм.кв. (серый); AVK2,5 (упак 100 шт) | C20: 19 | D20: =AQ34 -> 27.9094 | E20: Маркировка: | F20: =CONCATENATE(F19,G19,H19,J19,L19,N19,P7,R7,Q8,Q9,Q10,Q11,Q12,T19,Z19,V19) -> ЩУ-П НИКОМАКр-230-IP31-1[3/230/1-24D] | G20: =Изделие!B3 -> Кр | J20: =Изделие!B5 -> IP31 | L20: =Изделие!B6 -> 1 | N20: =SUM(N7:N12) -> 3 | T20: =Изделие!B16 -> 24D | V20: =Изделие!B18 -> 0 | X20: =Изделие!B7 -> 1 | Z20: =Изделие!B17 -> 0
A21: 20 | B21: =AR34 -> 304120, Клеммник на DIN-рейку 2,5мм.кв. (серый); AVK2,5 (упак 100 шт) | C21: 20 | D21: =AS34 -> 27.9094 | E21: =CONCATENATE(R19,G1) -> 1А | V21: =IF(V20=V5,1,0) -> 0 | Z21: =IF(Z20=Z5,1,0) -> 0
A22: 21 | B22: =AT34 -> Лампа ADDS 22мм зеленая LED 220В | C22: 21 | D22: =AU34 -> 93.7 | E22: Компаненты: | F22: Корпус | G22: Цена: | H22: Параметр 1 | I22: Цена: | J22: Параметр 2 | K22: Цена: | L22: Параметр 3 | M22: Цена: | N22: Параметр 4 | O22: Цена: | P22: Параметр 5 | Q22: Цена: | R22: Параметр 6 | S22: Цена: | T22: Параметр 7 | U22: Цена: | V22: Параметр 8 | W22: Цена: | X22: Параметр 9 | Y22: Цена: | Z22: Параметр 10 | AA22: Цена: | AB22: Параметр 11 | AC22: Цена: | AD22: Параметр 12 | AE22: Цена: | AF22: Параметр 13 | AG22: Цена: | AH22: Параметр 14 | AI22: Цена: | AJ22: Параметр 15 | AK22: Цена: | AL22: Параметр 16 | AM22: Цена: | AN22: Параметр 17 | AO22: Цена: | AP22: Параметр 18 | AQ22: Цена: | AR22: Параметр 19 | AS22: Цена: | AT22: Параметр 20 | AU22: Цена: | AV22: Параметр 21 | AW22: Цена: | AX22: Параметр 22 | AY22: Цена: | AZ22: Параметр 23 | BA22: Цена: | BB22: Параметр 24 | BC22: Цена: | BD22: Параметр 25 | BE22: Цена: | BF22: Параметр 26 | BG22: Цена: | BH22: Параметр 27 | BI22: Цена: | BJ22: Параметр 28 | BK22: Цена: | BL22: Параметр 29 | BM22: Цена: | BN22: Параметр 30 | BO22: Цена: | BP22: Параметр 31 | BQ22: Цена:
A23: С реверсивным приводом, 230В, Iном < | B23: Привод - с возвратной пружиной, 230В, Iном < | C23: С электромагнитным приводом, 230В, Iном < | D23: =IF(G20=G5,F23,IF(G20=G4,F24,F25)) -> С реверсивным приводом, 230В, Iном < 1А | E23: Варианты: | F23: =CONCATENATE(A23,E21) -> С реверсивным приводом, 230В, Iном < 1А
A24: Степень защиты оболочки IP65 | B24: Степень защиты: IP54 | C24: Степень защиты оболочки IP31 | D24: =IF(J20=J6,A24,IF(J20=J5,B24,C24)) -> Степень защиты оболочки IP31 | F24: =CONCATENATE(B23,E21) -> Привод - с возвратной пружиной, 230В, Iном < 1А
A25: =N20 -> 3 | B25: Щит управления | C25: =IF(A25=1,"-м",IF(A25<5,"-мя","-ю")) -> -мя | D25: клапанами | F25: =CONCATENATE(C23,E21) -> С электромагнитным приводом, 230В, Iном < 1А
A26: Управляющий сигнал, от внешних устройств, типа: | B26: ("сухой контакт") | C26: (напряжение 12VDC) | D26: (напряжение 24VDC)
A27: =T20 -> 24D | B27: =IF(A27=T6,C26,IF(A27=T7,D26,B26)) -> (напряжение 24VDC)
A28: =V20 -> 0 | B28: =IF(A28=V5,C28,D28) ->  | C28: Доп. Опция: Индикация положения каждого клапана "Открыт", "Закрыт" | D28: ="" -> 
A29: шт. | B29: Пожарных зон: | C29: =CONCATENATE(B29,X20,A29) -> Пожарных зон: 1 шт. | D29: 2800
A30: =Z20 -> 0 | B30: =IF(A30=Z5,C30,D30) ->  | C30: Доп. Опция: Диспетчеризация положения каждого клапана "Открыт", "Закрыт" | D30: ="" -> 
A31: 30 | B31: Элемент 30 | C31: 30 | D31: 3000
A32: 31 | B32: Элемент 31 | C32: 31 | D32: 3100 | H32: =IF(X20<3,0,IF(X20<5,1,2)) -> 0
A33: 32 | B33: Элемент 32 | C33: 32 | D33: 3200 | H33: =IF(T20=T5,0,IF(H34=B45,E45,E46)) -> 1 | J33: =IF(E47>0,E47,IF(E48>0,E48,IF(E49>0,E49,E51))) -> 1 | L33: =IF(E48=0,"",E50) ->  | N33: =E52 -> 1 | P33: =E53 -> 1 | R33: =E54 -> 1 | T33: =E55 -> 1 | V33: =E56 -> 1 | X33: =E57 -> 2 | Z33: =E58 -> 2 | AB33: =E59 -> 2 | AD33: =E60 -> 1 | AF33: =E61 -> 1 | AH33: =E62 -> 1 | AJ33: =E63 -> 6 | AL33: =E64 -> 3 | AN33: =E65 -> 0 | AP33: =E66 -> 2 | AR33: =E67 -> 6 | AT33: =E68 -> 1 | AV33: =E69 -> 1 | AX33: =E70 -> 2 | AZ33: =E71 -> 1 | BB33: =E72 -> 1 | BD33: =E73 -> 1
A34: 33 | B34: Элемент 33 | C34: 33 | D34: 3300 | E34: итог: | F34: =CONCATENATE(B44,F44) -> Корпус ЩМП1 (395х310х220) | G34: =J44 -> 2,056.00 ₽ | H34: =IF(E45=0,B46,B45) -> Блок релейный "БР-2-US-IP00" | I34: =IF(E45=0,J46,J45) -> 485 | J34: =IF(E47>0,B47,IF(E48>0,B48,IF(E49>0,B49,B51))) -> Контактор КМ-103 9А катушка управления 220В AC | K34: =IF(J34=B47,J47,IF(J34=B48,J48,IF(J34=B49,J49,J51))) -> 466.84 | L34: =IF(E48=0,"",B50) ->  | M34: =IF(E48=0,"",J50) ->  | N34: =B53 -> Выключатель автоматический однополюсный 1А С ВА-101 4.5кА (11049DEK) | O34: =J52 -> 134.94 ₽ | P34: =B53 -> Выключатель автоматический однополюсный 1А С ВА-101 4.5кА (11049DEK) | Q34: =J53 -> 160.07 ₽ | R34: =B54 -> Реле промышленное миниатюрное; монтаж в колодку; Контакты: 4CO (AgNi), напряжение 230В AC, номинальный ток 6А, опции: кнопка тест + мех.индикатор. R4N-2014-23-5230-WT | S34: =J54 -> 224.00 ₽ | T34: =B55 -> Колодка с винтовыми зажимами (75*27*61мм) для реле серии R4N, T-R4; цвет серый. GZM4-gray | U34: =J55 -> 159.00 ₽ | V34: =B56 -> Фиксатор металлический для реле R2N, R3N, R4N для колодок GZM2, GZT2, GZM3, GZT3, GZM4, GZT4, GZMB4, GZ4, GZP4. G4 1052 | W34: =J56 -> 11.00 ₽ | X34: =B57 -> Реле миниатюрное электромеханическое низкопрофильное, Контакты: 2CO (AgNi), напряжение 230В AC, номинальный ток 8А, прозрачный корпус, IP40, RTII. RM84-2012-25-5230-RUS | Y34: =J57 -> 170.00 ₽ | Z34: =B58 -> Колодка с винтовыми зажимами для реле серии RM84, RM85,RM87L/P; цвет серый ( в комплекте шильдик маркировочный GZT80-0035). GZM80-gray | AA34: =J58 -> 113.00 ₽ | AB34: =B59 -> Фиксатор металлический для реле RM84, RM85, RM87, для колодок GZT80, GZM80, GZF80, GZT92, GZM92. GZM80-0041 | AC34: =J59 -> 11.00 ₽ | AD34: =B60 -> 304130, Клеммник на DIN-рейку 4мм.кв. (серый); AVK4 (упак 100 шт) | AE34: =J60 -> 31.55 ₽ | AF34: =B61 -> 304131, Клеммник на DIN-рейку 4мм.кв. (синий); AVK4 (упак 100 шт) | AG34: =J61 -> 31.55 ₽ | AH34: =B62 -> 334120, Клеммник на DIN-рейку 4 мм.кв., (земля); AVK2,5/4T (упак 50 шт) | AI34: =J62 -> 111.64 ₽ | AJ34: =B63 -> 304120, Клеммник на DIN-рейку 2,5мм.кв. (серый); AVK2,5 (упак 100 шт) | AK34: =J63 -> 27.91 ₽ | AL34: =B64 -> 304121, Клеммник на DIN-рейку 2,5мм.кв. (синий); AVK2,5 (упак 100 шт) | AM34: =J64 -> 27.91 ₽ | AN34: =B64 -> 304121, Клеммник на DIN-рейку 2,5мм.кв. (синий); AVK2,5 (упак 100 шт) | AO34: =J65 -> 27.91 ₽ | AP34: =B66 -> 304120, Клеммник на DIN-рейку 2,5мм.кв. (серый); AVK2,5 (упак 100 шт) | AQ34: =J66 -> 27.91 ₽ | AR34: =B67 -> 304120, Клеммник на DIN-рейку 2,5мм.кв. (серый); AVK2,5 (упак 100 шт) | AS34: =J67 -> 27.91 ₽ | AT34: =B68 -> Лампа ADDS 22мм зеленая LED 220В | AU34: =J68 -> 93.70 ₽ | AV34: =B69 -> Лампа ADDS 22мм красная LED 220В | AW34: =J69 -> 93.70 ₽ | AX34: =B70 -> Лампа ADDS 22мм желтая LED 220В | AY34: =J70 -> 91.15 ₽ | AZ34: =B71 -> Переключатель AKS-2 22мм с ключом 2 позиции I-O черная ручка | BA34: =J71 -> 228.78 ₽ | BB34: =B72 -> Перекл. на 2 пол. I-O удлинн. ручка (1НО+1НЗ) ALCR | BC34: =J72 -> 257.04 ₽ | BD34: =B73 -> Метизы и расходные материалы | BE34: =J73 -> 500.00 ₽
A35: 34 | B35: Элемент 34 | C35: 34 | D35: 3400
A36: 35 | B36: Элемент 35 | C36: 35 | D36: 3500 | E36: =L82 -> 16,318.52 ₽ | F36: =IF(Изделие!B6=2,Расёты!F38,Расёты!F37) -> , с косвенным контролем линий управления | H36: Описание | I36: =CONCATENATE(B25,A25,C25,D25,F36) -> Щит управления 3-мя клапанами, с косвенным контролем линий управления
A37: 36 | B37: Элемент 36 | C37: 36 | D37: 3600 | E37: 68 | F37: , с косвенным контролем линий управления | I37: =D23 -> С реверсивным приводом, 230В, Iном < 1А | P37: 9А | S37: 12А | T37: 18А | U37: 25А
A38: 37 | B38: Элемент 37 | C38: 37 | D38: 3700 | E38: 69 | F38: , с прямым контролем всех линий | I38: =CONCATENATE(F43,F44,L38,D24) -> Корпус: ЩМП1 (395х310х220). Степень защиты оболочки IP31 | L38: . | O38: контактор | P38: 22103DEK | S38: 22108DEK | T38: 22113DEK | U38: 22118DEK
A39: 38 | B39: Элемент 38 | C39: 38 | D39: 3800 | E39: 70 | I39: =CONCATENATE(A26,A27,B27) -> Управляющий сигнал, от внешних устройств, типа: 24D (напряжение 24VDC) | O39: цена: | P39: =[1]Контакторы!$G$5 -> 466.84 ₽ | S39: =[1]Контакторы!$G$4 -> 517.39 ₽ | T39: =[1]Контакторы!$G$17 -> 630.79 ₽ | U39: =[1]Контакторы!$G$18 -> 799.94 ₽
A40: 39 | B40: Элемент 39 | C40: 39 | D40: 3900 | E40: 71 | I40: =IF(V20=V5,B28,B30) ->  | P40: Контактор КМ-103 9А катушка управления 220В AC | S40: Контактор КМ-103 12А катушка управления 220В AC | T40: Контактор КМ-103 18А катушка управления 220В AC | U40: Контактор КМ-103 25А катушка управления 220В AC
A41: 40 | B41: Элемент 40 | C41: 40 | D41: 4000 | E41: 72 | I41: =IF(V20=V5,B30,"") -> 
A42: ТИП | B42: ОПИСАНИЕ | D42: КОД ОБОРУД | E42: кол-во,шт | H42: IP54 | I42: IP65 | J42: Стоимость | K42: Цена | L42: Стоимость одного шкафа в сборе | M42: дата актуализации цены | O42: Корректировка
A43: АППАРАТУРА НА ППУ | B43: =F20 -> ЩУ-П НИКОМАКр-230-IP31-1[3/230/1-24D] | E43: 1 | F43: Корпус: | H43: 400.00 ₽ | I43: 2,500.00 ₽ | J43: =SUM(K44:K73) -> 6,289.57 ₽ | K43: =SUM(K44:K73)*E43 -> 6,289.57 ₽ | L43: =J43+(J43*I88)+(D175*I87)+(J43*I89)+(J43*I90)+(D179*I91)+(D180*I92) -> 9,631.18 ₽ | M43: 2021-10-15 | O43: =N20 -> 3 | P43: - кол-во клапанов | R43: =SUM(L45:L67) -> 20.45 | S43: Корпус
B44: Корпус | E44: 1 | F44: =IF(L20=L4,O45,O46) -> ЩМП1 (395х310х220) | G44: =IF(F44=S44,S45,IF(F44=T44,T45,IF(F44=U44,U45,IF(F44=V44,V45,IF(F44=W44,W45,IF(F44=X44,X45,IF(F44=Y44,Y45,Z45))))))) -> 2,056.00 ₽ | H44: =G44+H43 -> 2,456.00 ₽ | I44: =G44+I43 -> 4,556.00 ₽ | J44: =IF(J20=J4,G44,IF(J20=J5,H44,I44)) -> 2,056.00 ₽ | K44: =E44*J44 -> 2,056.00 ₽ | L44: кол-во модулей | M44: 1 "-" | N44: =IF(R43<O76,S44,IF(R43<P76,T44,IF(R43<Q76,U44,IF(R43<S76,V44,IF(R43<T76,W44,IF(R43<W76,Y44,Z44)))))) -> ЩМП1 (395х310х220) | O44: 3000 | P44: - довесок за шкаф | S44: ЩМП1 (395х310х220) | T44: ЩМП2 (500х400х220) | U44: ЩМП3 (650х500х220) | V44: ЩМП4 (800х650х250) | W44: ЩМП5 (1000х750х300) | X44: ЩМП6 (1200х750х300) | Y44: ЩМП7 (1400х650х285) | Z44: ЭКСКЛЮЗИВ
A45: DA1.1 | B45: Блок релейный "БР-2-US-IP00" | D45: БР-2 | E45: =IF(T20=T6,F45,IF(T20=T7,F45,0)) -> 1 | F45: =IF(E51<3,1,2)+H32 -> 1 | J45: ='[2]БР-2'!$D$71 -> 485.00 ₽ | K45: =E45*J45 -> 485.00 ₽ | L45: =3*E45 -> 3.00 | M45: "И" | N45: =IF(R43<O76,S44,IF(R43<P76,T44,IF(R43<Q76,U44,IF(R43<S76,V44,IF(R43<T76,W44,IF(R43<W76,Y44,Z44)))))) -> ЩМП1 (395х310х220) | O45: =IF(V20=V5,N45,N44) -> ЩМП1 (395х310х220) | S45: =[1]Корпуса!$F$31 -> 2,056.00 ₽ | T45: =[1]Корпуса!$F$30 -> 2,634.40 ₽ | U45: =[1]Корпуса!$F$29 -> 3,352.00 ₽ | V45: =[3]Корпуса!$F$27 -> 4,999.60 ₽ | W45: =[3]Корпуса!$F$25 -> 6,446.80 ₽ | X45: =[3]Корпуса!$F$23 -> 9,035.20 ₽ | Y45: =[3]Корпуса!$F$160 -> 16,753.00 ₽ | Z45: 30,000.00 ₽
A46: DA1.2 | B46: =IF(E51<3,D46,C46) -> Блок релейный БР-1М-Пд-УН-IP20 | C46: Блок релейный БР-1М-Пд-УН-IP20-V3 | D46: Блок релейный БР-1М-Пд-УН-IP20 | E46: =IF(E45=0,F46,0) -> 0 | F46: =1+H32 -> 1 | H46: ='[2]БР-1М'!$D$62 -> 4,248.00 ₽ | I46: ='[2]БР-1М'!$D$61 -> 3,493.00 ₽ | J46: =IF(B46=C46,H46,I46)*H33 -> 3,493.00 ₽ | K46: 0.00 ₽ | L46: =4*E46 -> 0.00 | M46: 2 "И" | N46: =IF(R43<O76,S44,IF(R43<P76,T44,IF(R43<Q76,U44,IF(R43<S76,V44,IF(R43<T76,W44,IF(R43<W76,X44,IF(R43<AA76,Y44,Z44))))))) -> ЩМП1 (395х310х220) | O46: =IF(V20=V5,N46,N47) -> ЩМП1 (395х310х220)
A47: DA1.1-DA1.15 | B47: Блок релейный, БР-4-230-КР(П)-Пд-ТС-IP20 | D47: БР-4 | E47: =IF(L20=L4,0,F47) -> 0 | F47: =IF(G20=G6,0,G47) -> 0 | G47: =IF(G20=G5,H47,0) -> 0 | H47: =IF(V20=V5,I47,I47) -> 0 | I47: =IF(L20=L5,O43,0) -> 0 | J47: ='[2]БР-4'!$D$55 -> 3,632.00 ₽ | K47: 0.00 ₽ | L47: =6*E47 -> 0.00 | M47: 2 "-" | N47: =IF(R43<24,S44,IF(R43<48,T44,IF(R43<84,U44,IF(R43<120,V44,IF(R43<164,X44,IF(R43<180,Y44,Z44)))))) -> ЩМП1 (395х310х220) | P47: RM84-2012-35-5230 | Q47: 1 | U47: шт. | V47: 146.00 ₽ | W47: =Q47*V47 -> 146.00 ₽ | X47: РелПол
A48: DA3 | B48: Блок релейный, БР-1-230-КП(Р/Э)-Пд-ТК)С)-IP20 | C48: =IF(G20=G4,I48,0) -> 0 | D48: БР1 | E48: =IF(V20=V5,C48,F48) -> 0 | F48: =IF(G20=G6,I48,C48) -> 0 | G48: =IF(G20=G4,I48,F48) -> 0 | H48: =IF(L20=L4,I48,G48) -> 0 | I48: =IF(G20=G6,H49,I47) -> 0 | J48: ='[2]БР-1'!$D$59 -> 3,543.00 ₽ | K48: =E48*J48 -> 0.00 ₽ | L48: =3*E48 -> 0.00 | P48: GZT80 | Q48: 1 | U48: шт. | V48: 78.00 ₽ | W48: =Q48*V48 -> 78.00 ₽ | X48: РелПол
A49: DA1.1-DA1.15 | B49: Блок релейный, БР-4-230-УН-Пд-ТС-IP20-М | D49: БР-4М | E49: =IF(L20=L5,F49,0) -> 0 | F49: =IF(V20=V5,G49,0) -> 0 | G49: =IF(G20=G6,H49,0) -> 0 | H49: =IF(I49<1,0,IF(I49<3,1,IF(I49<5,2,IF(I49<7,3,IF(I49<9,4,IF(I49<11,5,IF(I49<13,6,IF(I49<15,7,IF(I49<17,8,IF(I49<19,9,IF(I49<21,10,IF(I49<23,11,IF(I49<25,12,IF(I49<27,13,IF(I49<29,14,IF(I49<31,15,IF(I49<33,16,IF(I49<35,17,IF(I49<37,18,IF(I49<39,19,IF(I49<41,20,IF(I49<43,21,IF(I49<45,22,IF(I49<47,23,IF(I49<49,24,IF(I49<51,25,IF(I49<53,26,IF(I49<55,27,IF(I49<57,28,IF(I49<59,29,IF(I49<61,30,"много"))))))))))))))))))))))))))))))) -> 0 | I49: =IF(L20=L5,O43,0) -> 0 | J49: ='[2]БР-4'!$D$52 -> 3,686.00 ₽ | K49: =E49*J49 -> 0.00 ₽ | L49: =6*E49 -> 0.00
A50: UP | B50: Источник питания RS-15-12 | E50: =IF(E48=0,0,1) -> 0 | J50: ='[1]УСТР-ВА'!$D$144 -> 615.31 ₽ | K50: =E50*J50 -> 0.00 ₽ | L50: =4*E50 -> 0.00 | P50: 32015DEK | Q50: 1 | U50: шт. | V50: 330.62 ₽ | W50: =Q50*V50 -> 330.62 ₽ | X50: Klemsan
A51: KМ1 | B51: =P40 -> Контактор КМ-103 9А катушка управления 220В AC | D51: =IF(O43<27,P38,IF(O43<36,S38,IF(O43<54,T38,U38))) -> 22103DEK | E51: =IF(SUM(E47:E49)<1,F51,0) -> 1 | F51: =IF(O43<19,1,IF(O43<39,2,IF(O43<56,3,4)))+(X20-1) -> 1 | J51: =IF(D51=P38,P39,IF(D51=S38,S39,IF(D51=T38,T39,U39))) -> 466.84 ₽ | K51: =E51*J51 -> 466.84 ₽ | L51: =4*E51 -> 4.00 | R51: 6 | S51: 10 | T51: 16 | U51: 20 | V51: 25 | W51: 32 | X51: 40 | Y51: 50 | Z51: 63
A52: QF1 | B52: =IF(D52=R52,R63,IF(D52=S52,R62,IF(D52=T52,R61,IF(D52=U52,R60,IF(D52=V52,R59,IF(D52=W52,R58,IF(D52=X52,R57,IF(D52=Y52,R56,IF(D52=Z52,R55))))))))) -> Выключатель автоматический однополюсный 6А С ВА-101 4.5кА (11052DEK) | D52: =IF(O43<7,R52,IF(O43<11,S52,IF(O43<17,T52,IF(O43<21,U52,IF(O43<26,V52,IF(O43<33,W52,IF(O43<41,X52,IF(O43<51,Y52,Z52)))))))) -> 11052DEK | E52: 1 | J52: =IF(D52=R52,R53,IF(D52=S52,S53,IF(D52=T52,T53,IF(D52=U52,U53,IF(D52=V52,V53,IF(D52=W52,W53,IF(D52=X52,X53,IF(D52=Y52,Y53,Z53)))))))) -> 134.94 ₽ | K52: 134.94 ₽ | L52: =1*E52 -> 1.00 | Q52: автомат "С" | R52: 11052DEK | S52: 11053DEK | T52: 11054DEK | U52: 11055DEK | V52: 11056DEK | W52: 11057DEK | X52: 11058DEK | Y52: 11059DEK | Z52: 11060DEK | AG52: автомат "С" | AH52: 11076DEK | AI52: 11077DEK | AJ52: 11078DEK | AK52: 11079DEK | AL52: 11080DEK | AM52: 11081DEK | AN52: 11082DEK | AO52: 11083DEK | AP52: 11084DEK | AQ52: 13008DEK | AR52: 13009DEK
A53: QF2 | B53: =[1]Автоматы!$A$468 -> Выключатель автоматический однополюсный 1А С ВА-101 4.5кА (11049DEK) | D53: =[1]Автоматы!$I$345 -> 11149DEK | E53: 1 | J53: =[1]Автоматы!$H$345 -> 160.07 ₽ | K53: 160.07 ₽ | L53: =1*E53 -> 1.00 | N53: =IF((V21+Z21)>0,1,0) -> 0 | P53: цена: | R53: =[1]Автоматы!$H$23 -> 134.94 ₽ | S53: =[1]Автоматы!$H$22 -> 127.28 ₽ | T53: =[1]Автоматы!$H$21 -> 114.72 ₽ | U53: =[1]Автоматы!$H$20 -> 137.66 ₽ | V53: =[1]Автоматы!$H$19 -> 118.55 ₽ | W53: =[1]Автоматы!$H$17 -> 134.94 ₽ | X53: =[1]Автоматы!$H$16 -> 139.31 ₽ | Y53: =[1]Автоматы!$H$15 -> 160.61 ₽ | Z53: =[1]Автоматы!$H$14 -> 160.61 ₽ | AF53: цена: | AH53: =[1]Автоматы!$H$340 -> 427.74 ₽ | AI53: =[1]Автоматы!$H$339 -> 423.37 ₽ | AJ53: =[1]Автоматы!$H$338 -> 408.61 ₽ | AK53: =[1]Автоматы!$H$337 -> 426.10 ₽ | AL53: =[1]Автоматы!$H$336 -> 368.75 ₽ | AM53: =[1]Автоматы!$H$335 -> 398.24 ₽ | AN53: =[1]Автоматы!$H$334 -> 414.07 ₽ | AO53: =[1]Автоматы!$H$333 -> 495.48 ₽ | AP53: =[1]Автоматы!$H$332 -> 481.27 ₽ | AQ53: =[1]Автоматы!$H$350 -> 1,813.63 ₽ | AR53: =[1]Автоматы!$H$351 -> 1,808.17 ₽
A54: KL1 | B54: =[1]Реле!$A$103 -> Реле промышленное миниатюрное; монтаж в колодку; Контакты: 4CO (AgNi), напряжение 230В AC, номинальный ток 6А, опции: кнопка тест + мех.индикатор. R4N-2014-23-5230-WT | D54: R4N-2014-23-5230-WT | E54: =1+X15 -> 1 | J54: =[1]Реле!$G$103 -> 224.00 ₽ | K54: 224.00 ₽ | L54: =2*E54 -> 2.00
B55: =[1]Реле!$A$104 -> Колодка с винтовыми зажимами (75*27*61мм) для реле серии R4N, T-R4; цвет серый. GZM4-gray | D55: GZM4-gray | E55: =E54 -> 1 | J55: =[1]Реле!$G$104 -> 159.00 ₽ | K55: 159.00 ₽ | L55: =0*E55 -> 0.00 | R55: Выключатель автоматический однополюсный 63А С ВА-101 4.5кА (11060DEK)
B56: =[1]Реле!$A$105 -> Фиксатор металлический для реле R2N, R3N, R4N для колодок GZM2, GZT2, GZM3, GZT3, GZM4, GZT4, GZMB4, GZ4, GZP4. G4 1052 | D56: G4 1052 | E56: =E54 -> 1 | J56: =[1]Реле!$G$105 -> 11.00 ₽ | K56: 11.00 ₽ | L56: =0*E56 -> 0.00 | R56: Выключатель автоматический однополюсный 50А С ВА-101 4.5кА (11059DEK)
A57: KL2, KL11-KL20 | B57: =[1]Реле!$A$99 -> Реле миниатюрное электромеханическое низкопрофильное, Контакты: 2CO (AgNi), напряжение 230В AC, номинальный ток 8А, прозрачный корпус, IP40, RTII. RM84-2012-25-5230-RUS | D57: RM84-2012-25-5230-RUS | E57: =IF(N53=1,(2+O57),2) -> 2 | J57: =[1]Реле!$G$99 -> 170.00 ₽ | K57: 340.00 ₽ | L57: =1*E57 -> 2.00 | O57: =IF(E49=0,O43,0) -> 3 | P57: - кол-во клапанов | R57: Выключатель автоматический однополюсный 40А С ВА-101 4.5кА (11058DEK)
B58: =[1]Реле!$A$100 -> Колодка с винтовыми зажимами для реле серии RM84, RM85,RM87L/P; цвет серый ( в комплекте шильдик маркировочный GZT80-0035). GZM80-gray | D58: GZM80-gray | E58: =E57 -> 2 | J58: =[1]Реле!$G$100 -> 113.00 ₽ | K58: 226.00 ₽ | L58: =0*E58 -> 0.00 | R58: Выключатель автоматический однополюсный 32А С ВА-101 4.5кА (11057DEK)
B59: =[1]Реле!$A$101 -> Фиксатор металлический для реле RM84, RM85, RM87, для колодок GZT80, GZM80, GZF80, GZT92, GZM92. GZM80-0041 | D59: GZM80-0041 | E59: =E57 -> 2 | J59: =[1]Реле!$G$101 -> 11.00 ₽ | K59: 22.00 ₽ | L59: =0*E59 -> 0.00 | R59: Выключатель автоматический однополюсный 25А С ВА-101 4.5кА (11056DEK)
A60: ХТ1 | B60: 304130, Клеммник на DIN-рейку 4мм.кв. (серый); AVK4 (упак 100 шт) | D60: 304130 | E60: 1 | J60: =[1]Клеммы!$E$111 -> 31.55 ₽ | K60: 31.55 ₽ | L60: =0.5*E60 -> 0.50 | R60: Выключатель автоматический однополюсный 20А С ВА-101 4.5кА (11055DEK)
B61: 304131, Клеммник на DIN-рейку 4мм.кв. (синий); AVK4 (упак 100 шт) | D61: 304131 | E61: 1 | J61: =[1]Клеммы!$E$113 -> 31.55 ₽ | K61: 31.55 ₽ | L61: =0.5*E61 -> 0.50 | M61: Всего шкафов | R61: Выключатель автоматический однополюсный 16А С ВА-101 4.5кА (11054DEK)
B62: 334120, Клеммник на DIN-рейку 4 мм.кв., (земля); AVK2,5/4T (упак 50 шт) | D62: 334120 | E62: 1 | J62: =[1]Клеммы!$E$115 -> 111.64 ₽ | K62: 111.64 ₽ | L62: =0.5*E62 -> 0.50 | M62: =E43 -> 1 | R62: Выключатель автоматический однополюсный 10А С ВА-101 4.5кА (11053DEK)
A63: ХТ2 | B63: 304120, Клеммник на DIN-рейку 2,5мм.кв. (серый); AVK2,5 (упак 100 шт) | D63: 304120 | E63: =IF(G20=G5,G63,F63) -> 6 | F63: =O43 -> 3 | G63: =O43*2 -> 6 | J63: =[1]Клеммы!$E$116 -> 27.91 ₽ | K63: =E63*J63 -> 167.46 ₽ | L63: =0.35*E63 -> 2.10 | R63: Выключатель автоматический однополюсный 6А С ВА-101 4.5кА (11052DEK)
B64: 304121, Клеммник на DIN-рейку 2,5мм.кв. (синий); AVK2,5 (упак 100 шт) | D64: 304121 | E64: =O43 -> 3 | J64: =[1]Клеммы!$E$118 -> 27.91 ₽ | K64: 83.73 ₽ | L64: =0.35*E64 -> 1.05
A65: ХТ3 | B65: 304120, Клеммник на DIN-рейку 2,5мм.кв. (серый); AVK2,5 (упак 100 шт) | D65: 304120 | E65: =IF(N53=1,O43*3,0) -> 0 | J65: =[1]Клеммы!$E$116 -> 27.91 ₽ | K65: 0.00 ₽ | L65: =0.35*E65 -> 0.00
A66: ХТ4 | B66: 304120, Клеммник на DIN-рейку 2,5мм.кв. (серый); AVK2,5 (упак 100 шт) | D66: 304120 | E66: =IF(T20=T4,4,IF(T20=T5,4,IF(T20=T6,2,2)))+X13 -> 2 | J66: =[1]Клеммы!$E$116 -> 27.91 ₽ | K66: 55.82 ₽ | L66: =0.35*E66 -> 0.70
A67: ХТ5 | B67: 304120, Клеммник на DIN-рейку 2,5мм.кв. (серый); AVK2,5 (упак 100 шт) | D67: 304120 | E67: =IF(N53=1,(6+(O43*2)),6) -> 6 | J67: =[1]Клеммы!$E$116 -> 27.91 ₽ | K67: 167.46 ₽ | L67: =0.35*E67 -> 2.10
A68: HL3, L1.2-L10.2 | B68: Лампа ADDS 22мм зеленая LED 220В | D68: 25002DEK | E68: =IF(V20=V5,F68,G68) -> 1 | F68: =G68+O68 -> 4 | G68: 1 | J68: =[1]Лампы!$G$5 -> 93.70 ₽ | K68: 93.70 ₽ | O68: =O43 -> 3 | P68: - кол-во клапанов
A69: HL1,HL1.1-L10.1 | B69: Лампа ADDS 22мм красная LED 220В | D69: 25003DEK | E69: =IF(V20=V5,F69,G69)+X15 -> 1 | F69: =G69+O69 -> 4 | G69: 1 | J69: =[1]Лампы!$G$3 -> 93.70 ₽ | K69: 93.70 ₽ | O69: =O43 -> 3 | P69: - кол-во клапанов
A70: HL4,HL2 | B70: Лампа ADDS 22мм желтая LED 220В | D70: 25004DEK | E70: =IF(V20=V5,F70,G70)+X15 -> 2 | F70: =G70+O70 -> 5 | G70: 2 | J70: =[1]Лампы!$G$6 -> 91.15 ₽ | K70: 182.30 ₽ | O70: =O43 -> 3 | P70: - кол-во клапанов
A71: SA1 | B71: Переключатель AKS-2 22мм с ключом 2 позиции I-O черная ручка | D71: 25053DEK | E71: =1+X15 -> 1 | J71: ='[1]Кнопки, переключатели'!$F$6 -> 228.78 ₽ | K71: 228.78 ₽
A72: SA2 | B72: Перекл. на 2 пол. I-O удлинн. ручка (1НО+1НЗ) ALCR | D72: 25145DEK | E72: 1 | J72: ='[1]Кнопки, переключатели'!$F$22 -> 257.04 ₽ | K72: 257.04 ₽
B73: Метизы и расходные материалы | E73: 1 | J73: 500.00 ₽ | K73: =E73*J73 -> 500.00 ₽
B75: ЩУ-П НИКОМ Кп-230-IP31-1[ | D75: /230/1-24D] | K75: Комплектация | L75: =K43 -> 6,289.57 ₽ | N75: кол-во модулей
K76: Подготовка Док-ции | L76: =(D175*(M62))*I87 -> 700.00 ₽ | N76: 12 | O76: 24 | P76: 32 | Q76: 63 | R76: 90 | S76: 120 | T76: 150 | U76: 180 | V76: 200 | W76: 240 | X76: 320
K77: ИТР | L77: =(K43)*I88 -> 503.17 ₽ | N77: СТОИМОСТЬ СБОРКИ - от мощности
K78: Сборка | L78: =IF(R43<N76,N78,IF(R43<O76,O78,IF(R43<P76,P78,IF(R43<Q76,Q78,IF(R43<R76,R78,IF(R43<S76,S78,IF(R43<T76,T78,IF(R43<U76,U78,IF(R43<V76,V78,IF(R43<W76,W78,IF(R43<X76,X78,"ты охуел?"))))))))))) -> 8,700.00 ₽ | N78: 6,500.00 ₽ | O78: 8,700.00 ₽ | P78: 10,800.00 ₽ | Q78: 14,900.00 ₽ | R78: 16,920.00 ₽ | S78: 20,900.00 ₽ | T78: 24,400.00 ₽ | U78: 26,700.00 ₽ | V78: 28,800.00 ₽ | W78: 32,000.00 ₽ | X78: 36,500.00 ₽
K79: Программирование | L79: =D179*I91 -> 0.00 ₽
K80: ОТК | L80: =(K43)*I90 -> 125.79 ₽
K81: Шеф-монтаж | L81: =(D180*(M62))*I92 -> 0.00 ₽
K82: Итого | L82: =SUM(L75:L81) -> 16,318.52 ₽ | O82: Скидка: | P82: 5% | Q82: =IF(Q83>L78,"работа","ПЕРЕБОР со скидкой!!!") -> работа
O83: =L82-L82*P82 -> 15,502.60 ₽ | Q83: =O83-L75 -> 9,213.03 ₽
K84: Проверка:
K85: матриалы | L85: =L75 -> 6,289.57 ₽
K86: работа | L86: =SUM(L76:L81) -> 10,028.96 ₽
E87: 5000*К0 | I87: 0.14 | J87: коэф. На разработку
E88: Цк*К1 | I88: 0.08 | J88: коэф. На ИТР
E89: Цк*К2 | I89: 0.32 | J89: коэф. На сборку
E90: Цк*К3 | I90: 0.02 | J90: коэф. На ОТК
E91: 2000*К4 | I91: 0 | J91: коэф. На программир-е
E92: 1000*К5 | I92: 0 | J92: коэф. На Шеф-монтаж
B95: Спецификация | C95: кол-во | D95: стоимость | E95: Итого
A96: 1 | B96: =Расёты!B2 -> Корпус ЩМП1 (395х310х220) | C96: 1 | D96: =Расёты!G34 -> 2,056.00 ₽ | E96: =D96*C96 -> 2,056.00 ₽ | F96: комплектация | G96: =SUM(E96:E128) -> 6,289.57 ₽
A97: 2 | B97: =Расёты!B3 -> Блок релейный "БР-2-US-IP00" | C97: =Расёты!H33 -> 1 | D97: =Расёты!I34 -> 485.00 ₽ | E97: =D97*C97 -> 485.00 ₽ | F97: РАБОТА | G97: =Расёты!L86 -> 10,028.96 ₽
A98: 3 | B98: =Расёты!B4 -> Контактор КМ-103 9А катушка управления 220В AC | C98: =Расёты!J33 -> 1 | D98: =Расёты!K34 -> 466.84 ₽ | E98: =D98*C98 -> 466.84 ₽ | F98: (МАХ СКИДКА) | G98: =Изделие!E1-SUM(G96:G97) -> 0
A99: 4 | B99: =Расёты!B5 ->  | C99: =Расёты!L33 ->  | D99: =Расёты!M34 ->  | E99: =IF(B99="",0,(D99*C99)) -> 0
A100: 5 | B100: =Расёты!B6 -> Выключатель автоматический однополюсный 1А С ВА-101 4.5кА (11049DEK) | C100: =Расёты!N33 -> 1 | D100: =Расёты!O34 -> 134.94 ₽ | E100: =D100*C100 -> 134.94 ₽
A101: 6 | B101: =Расёты!B7 -> Выключатель автоматический однополюсный 1А С ВА-101 4.5кА (11049DEK) | C101: =Расёты!P33 -> 1 | D101: =Расёты!Q34 -> 160.07 ₽ | E101: =D101*C101 -> 160.07 ₽
A102: 7 | B102: =Расёты!B8 -> Реле промышленное миниатюрное; монтаж в колодку; Контакты: 4CO (AgNi), напряжение 230В AC, номинальный ток 6А, опции: кнопка тест + мех.индикатор. R4N-2014-23-5230-WT | C102: =Расёты!R33 -> 1 | D102: =Расёты!S34 -> 224.00 ₽ | E102: =D102*C102 -> 224.00 ₽
A108: 8 | B108: =Расёты!B9 -> Колодка с винтовыми зажимами (75*27*61мм) для реле серии R4N, T-R4; цвет серый. GZM4-gray | C108: =Расёты!T33 -> 1 | D108: =Расёты!U34 -> 159.00 ₽ | E108: =D108*C108 -> 159.00 ₽
A109: 9 | B109: =Расёты!B10 -> Фиксатор металлический для реле R2N, R3N, R4N для колодок GZM2, GZT2, GZM3, GZT3, GZM4, GZT4, GZMB4, GZ4, GZP4. G4 1052 | C109: =Расёты!V33 -> 1 | D109: =Расёты!W34 -> 11.00 ₽ | E109: =D109*C109 -> 11.00 ₽
A110: 10 | B110: =Расёты!B11 -> Реле миниатюрное электромеханическое низкопрофильное, Контакты: 2CO (AgNi), напряжение 230В AC, номинальный ток 8А, прозрачный корпус, IP40, RTII. RM84-2012-25-5230-RUS | C110: =Расёты!X33 -> 2 | D110: =Расёты!Y34 -> 170.00 ₽ | E110: =D110*C110 -> 340.00 ₽
A111: 11 | B111: =Расёты!B12 -> Колодка с винтовыми зажимами для реле серии RM84, RM85,RM87L/P; цвет серый ( в комплекте шильдик маркировочный GZT80-0035). GZM80-gray | C111: =Расёты!Z33 -> 2 | D111: =Расёты!D12 -> 113 | E111: =D111*C111 -> 226.00 ₽
A114: 12 | B114: =Расёты!B13 -> Фиксатор металлический для реле RM84, RM85, RM87, для колодок GZT80, GZM80, GZF80, GZT92, GZM92. GZM80-0041 | C114: =Расёты!AB33 -> 2 | D114: =Расёты!D13 -> 11 | E114: =D114*C114 -> 22.00 ₽
A115: 13 | B115: =Расёты!B14 -> 304130, Клеммник на DIN-рейку 4мм.кв. (серый); AVK4 (упак 100 шт) | C115: =Расёты!AD33 -> 1 | D115: =Расёты!D14 -> 31.54975 | E115: 31.55 ₽
A116: 14 | B116: =Расёты!B15 -> 304131, Клеммник на DIN-рейку 4мм.кв. (синий); AVK4 (упак 100 шт) | C116: =Расёты!AF33 -> 1 | D116: =Расёты!D15 -> 31.54975 | E116: 31.55 ₽
A117: 15 | B117: =Расёты!B16 -> 334120, Клеммник на DIN-рейку 4 мм.кв., (земля); AVK2,5/4T (упак 50 шт) | C117: =Расёты!AH33 -> 1 | D117: =Расёты!D16 -> 111.6376 | E117: 111.64 ₽
A118: 16 | B118: =Расёты!B17 -> 304120, Клеммник на DIN-рейку 2,5мм.кв. (серый); AVK2,5 (упак 100 шт) | C118: =Расёты!AJ33 -> 6 | D118: =Расёты!D17 -> 27.9094 | E118: 167.46 ₽
A119: 17 | B119: =Расёты!B18 -> 304121, Клеммник на DIN-рейку 2,5мм.кв. (синий); AVK2,5 (упак 100 шт) | C119: =Расёты!AL33 -> 3 | D119: =Расёты!D18 -> 27.9094 | E119: 83.73 ₽
A120: 18 | B120: =Расёты!AP34 -> 304120, Клеммник на DIN-рейку 2,5мм.кв. (серый); AVK2,5 (упак 100 шт) | C120: =Расёты!AN33 -> 0 | D120: =Расёты!D19 -> 27.9094 | E120: 0
A121: 19 | B121: =Расёты!B20 -> 304120, Клеммник на DIN-рейку 2,5мм.кв. (серый); AVK2,5 (упак 100 шт) | C121: =Расёты!AP33 -> 2 | D121: =Расёты!D20 -> 27.9094 | E121: 55.82 ₽
A122: 20 | B122: =Расёты!B21 -> 304120, Клеммник на DIN-рейку 2,5мм.кв. (серый); AVK2,5 (упак 100 шт) | C122: =Расёты!AR33 -> 6 | D122: =Расёты!D21 -> 27.9094 | E122: 167.46 ₽
A123: 21 | B123: =Расёты!B22 -> Лампа ADDS 22мм зеленая LED 220В | C123: =Расёты!AT33 -> 1 | D123: =Расёты!D22 -> 93.7 | E123: 93.70 ₽
A124: 22 | B124: =Расёты!AV34 -> Лампа ADDS 22мм красная LED 220В | C124: =Расёты!AV33 -> 1 | D124: =Расёты!AW34 -> 93.70 ₽ | E124: 93.70 ₽
A125: 23 | B125: =Расёты!AX34 -> Лампа ADDS 22мм желтая LED 220В | C125: =Расёты!AX33 -> 2 | D125: =Расёты!AY34 -> 91.15 ₽ | E125: 182.30 ₽
A126: 24 | B126: =Расёты!AZ34 -> Переключатель AKS-2 22мм с ключом 2 позиции I-O черная ручка | C126: =Расёты!AZ33 -> 1 | D126: =Расёты!BA34 -> 228.78 ₽ | E126: 228.78 ₽
A127: 25 | B127: =Расёты!BB34 -> Перекл. на 2 пол. I-O удлинн. ручка (1НО+1НЗ) ALCR | C127: =Расёты!BB33 -> 1 | D127: =Расёты!BC34 -> 257.04 ₽ | E127: 257.04 ₽
A128: 26 | B128: =Расёты!BD34 -> Метизы и расходные материалы | C128: =Расёты!BD33 -> 1 | D128: =Расёты!BE34 -> 500.00 ₽ | E128: 500.00 ₽
B175: Соимость разработки КД: | D175: 5000
B176: Соимость ИТР:
B177: Соимость сборки:
B178: Соимость ОТК:
B179: Соимость программирования: | D179: 2000
B180: Соимость шеф-монтажа на объекте | D180: 1000
